[Event "Nacional Masters POR 2017-18"]
[Site "Cascais"]
[Date "2018.08.17"]
[Round "9"]
[White "Guerra, Vitor Manuel Vestia"]
[Black "Dias, Paulo"]
[Result "0-1"]
[ECO "A88"]
[WhiteElo "2127"]
[BlackElo "2328"]
[Annotator "NA"]
[PlyCount "42"]
[EventDate "2018.08.11"]
[EventType "tourn"]
[EventCountry "POR"]
[SourceTitle "playchess.com"]
[Source "ChessBase"]
[SourceQuality "1"]
[TimeControl "5400+30"]

{[%evp 11,40,37,22,20,42,34,34,15,10,-13,-16,-172,-155,-212,32767,32767,32767,32767,32767,32767,-286,32767,-281,32767,-382,-587,32767,32767,32767,32767,-1184]} 1. d4 {[%emt 0:00:00]} d6 {[%emt 0:10:54]} 2. Nf3 {[%emt 0:00:44]} f5 {[%emt 0:00:27]} 3. c4 {[%emt 0:06:03]} Nf6 {[%emt 0:00:21]} 4. Nc3 {[%emt 0:00:24]} g6 {[%emt 0:00:06]} 5. g3 {[%emt 0:00:27]} Bg7 {[%emt 0:00:07]} 6. Bg2 {[%emt 0:00:29]} O-O {[%emt 0:00:22]} 7. O-O {[%emt 0:05:42]} c6 {[%emt 0:02:00]} 8. d5 {[%emt 0:04:29]} e5 {[%emt 0:03:21]} 9. dxe6 {[%emt 0:05:21]} Bxe6 {[%emt 0:04:47]} 10. Qb3 {[%emt 0:00:05] LiveBook: 8 Games A88: Dutch Defence: Leningrad System: 5 Nf3 0-0 6 0-0 d6 7 Nc3 c6} (10. Qd3 Qe7 11. b3 Ne4 12. Bb2 Na6 13. Nd4 Nac5 14. Qd1 Bf7 15. Nxe4 Nxe4 16. Qc2 d5 17. cxd5 Bxd5 18. Nf3 Bxb2 19. Qxb2 {½-½ (35) Kosteniuk,A (2557)-Muzychuk,A (2582) Huaian 2017}) 10... b5 {[%emt 0:11:07]} 11. Nxb5 $2 {[%emt 0:00:27]} (11. Nd4 $11 Bxc4 12. Qc2) 11... cxb5 {[%emt 0:01:03]} 12. Ng5 $146 {[%emt 0:01:06]} ({Predecessor:} 12. Qxb5 Bd7 13. Qb3 Nc6 14. c5+ d5 15. Ng5 Ne7 16. Bf4 h6 17. Nf3 Nc6 {0-1 (42) Kubeczka,A (1975)-Soban,J (2122) Czechia 2011}) 12... Bxc4 {[%emt 0:01:36]} 13. Qc2 {[%emt 0:06:09]} Ne4 {[%emt 0:07:51]} 14. Nxe4 {[%emt 0:07:25]} fxe4 {[%emt 0:00:16]} 15. Qxe4 {[%emt 0:03:10]} d5 {[%emt 0:03:59]} 16. Qe6+ {[%emt 0:06:40]} Kh8 {[%emt 0:01:19]} 17. Rd1 {[%emt 0:05:32]} Nd7 {[%emt 0:05:36]} 18. Be3 {[%emt 0:10:27]} (18. Bf4 {was necessary.} Re8 19. Qd6) 18... d4 {[%emt 0:06:11]} 19. Qh3 {[%emt 0:00:40]} dxe3 {[%emt 0:00:26]} 20. Rxd7 {[%emt 0:00:33]} exf2+ {[%emt 0:00:34]} 21. Kh1 {[%emt 0:09:08]} Qe8 {[%emt 0:00:48]} 0-1

[Event "Nacional Masters POR 2017-18"]
[Site "Cascais"]
[Date "2018.08.17"]
[Round "9"]
[White "Margarido, Jose Miguel Teixeir"]
[Black "Fidalgo, Andre Neves"]
[Result "1/2-1/2"]
[ECO "B39"]
[WhiteElo "2081"]
[BlackElo "2187"]
[Annotator "NA"]
[PlyCount "65"]
[EventDate "2018.08.11"]
[EventType "tourn"]
[EventCountry "POR"]
[SourceTitle "playchess.com"]
[Source "ChessBase"]
[SourceQuality "1"]
[TimeControl "5400+30"]

1. e4 {[%emt 0:00:00]} c5 {[%emt 0:00:00]} 2. Nf3 {[%emt 0:00:00]} Nc6 {[%emt 0:00:00]} 3. d4 {[%emt 0:00:00]} cxd4 {[%emt 0:00:05]} 4. Nxd4 {[%emt 0:00:00]} g6 {[%emt 0:00:11]} 5. c4 {[%emt 0:00:00]} Nf6 {[%emt 0:00:10]} 6. Nc3 {[%emt 0:00:04]} Bg7 {[%emt 0:00:07]} 7. Be3 {[%emt 0:02:17]} Ng4 {[%emt 0:00:08] LiveBook: 1482 Games} 8. Qxg4 {[%emt 0:00:08]} Nxd4 {[%emt 0:00:06]} 9. Qd1 {[%emt 0:00:12]} Ne6 {[%emt 0:00:08]} 10. Rc1 {[%emt 0:00:28]} Qa5 {[%emt 0:00:06]} 11. Qd2 {[%emt 0:00:32]} b6 {[%emt 0:00:54]} 12. Be2 {[%emt 0:00:37]} Bb7 {[%emt 0:00:06]} 13. f3 {[%emt 0:00:23]} g5 {[%emt 0:01:16]} 14. O-O {[%emt 0:01:35]} Be5 {[%emt 0:00:09] [#] B39: Sicilian: Maroczy Bind with 5...Bg7 and 7...Ng4} 15. Rf2 $146 {[%emt 0:08:22]} ({Predecessor:} 15. Rfd1 Rd8 16. a3 Bf4 17. Bxf4 gxf4 18. Nd5 Qxd2 19. Rxd2 h5 20. b4 h4 21. a4 h3 22. g3 fxg3 23. hxg3 {½-½ (49) Sjugirov,S (2664)-Iturrizaga Bonelli,E (2625) Abu Dhabi 2015}) 15... Rg8 {[%emt 0:03:22]} 16. b3 {[%emt 0:08:27]} Bc6 {[%emt 0:10:12]} 17. Rc2 {[%emt 0:04:10]} ({White should try} 17. Qc2 $14) 17... Rc8 {[%emt 0:14:20]} 18. Nd5 {[%emt 0:02:10]} Qxd2 {[%emt 0:01:07]} 19. Rxd2 {[%emt 0:00:22]} Bd6 {[%emt 0:10:19]} 20. Nf6+ {[%emt 0:05:56]} exf6 {[%emt 0:00:13]} 21. Rxd6 {[%emt 0:00:02]} Ke7 {[%emt 0:00:55]} 22. Rd1 {[%emt 0:00:44]} h5 {[%emt 0:09:03]} 23. Bc1 {[%emt 0:06:38]} a5 {[%emt 0:02:23]} 24. Bb2 {[%emt 0:12:52]} Ra8 {[%emt 0:07:55]} 25. Bf1 {[%emt 0:06:44]} h4 $16 {[%emt 0:03:50]} 26. h3 {[%emt 0:01:35]} Rgb8 {[%emt 0:01:41]} 27. Rfd2 {[%emt 0:06:26]} Rb7 {[%emt 0:00:09]} 28. Rd6 {[%emt 0:06:06]} Raa7 {[%emt 0:01:02]} 29. R6d2 {[%emt 0:12:53]} Ra8 {[%emt 0:01:00]} 30. a3 {[%emt 0:03:24]} Raa7 {[%emt 0:00:17]} 31. Bd4 {[%emt 0:05:02]} Nxd4 {[%emt 0:01:21]} 32. Rxd4 {[%emt 0:00:01]} Rb8 {[%emt 0:04:24]} 33. Kf2 {[%emt 0:01:30]} 1/2-1/2